[Event "45th FIDE Olympiad 2024"]
[Site "Budapest"]
[Date "2024.09.14"]
[Round "4.64"]
[White "Pedro Manuel Envo Engonga Avom"]
[Black "Auguiste, Lyndon"]
[Result "0-1"]
[ECO "B01"]
[WhiteElo "1702"]
[BlackElo "1697"]
[PlyCount "192"]
[EventDate "2024.09.05"]
[EventType "team-tourn"]
[EventCountry "HUN"]
[WhiteTeam "Equatorial Guinea"]
[BlackTeam "Dominica"]
[BlackTeamCountry "DMA"]
[TimeControl "40/5400+30:1800+30"]

1. e4 d5 2. exd5 Qxd5 3. Nf3 Bg4 4. Be2 e6 5. d4 Nc6 6. c4 Qa5+ 7. Nc3 Bb4 8. a3 Bxf3 9. Bxf3 Bxc3+ 10. bxc3 Qxc3+ 11. Bd2 Qxd4 12. O-O Nge7 13. Qb3 O-O 14. Be3 Qh4 15. Qxb7 Rab8 16. Qxc7 Rfc8 17. Qd7 Ne5 18. Qd1 a5 19. c5 Nxf3+ 20. Qxf3 Nd5 21. Rab1 Qa4 22. Qg3 Rxb1 23. Rxb1 Qxa3 24. h3 Nxe3 25. Qxe3 Qxe3 26. fxe3 Kf8 27. Rb5 a4 28. Ra5 a3 29. Kf2 a2 30. Kf3 Rxc5 31. Rxa2 Ke7 32. Rd2 h5 33. Rd4 f5 34. Rf4 Rc1 35. Kg3 g5 36. Rd4 h4+ 37. Kf2 Kf6 38. Rd8 Rc7 39. Rf8+ Rf7 40. Rg8 Rg7 41. Rf8+ Ke5 42. Rh8 f4 43. Rh6 Rf7 44. Rh5 Rg7 45. Kf3 fxe3 46. Kxe3 Kf5 47. Rh8 Rb7 48. Rf8+ Ke5 49. Rg8 Rb3+ 50. Kf2 Rg3 51. Rh8 Ke4 52. Rh7 Rd3 53. Ke2 Re3+ 54. Kf2 Ra3 55. Rf7 Ra2+ 56. Kf1 Ra5 57. Ke2 e5 58. Rf8 Ra2+ 59. Kf1 Rc2 60. Rf7 Rc5 61. Kf2 Kd4 62. Rd7+ Rd5 63. Re7 e4 64. Ke2 Ra5 65. Rd7+ Ke5 66. Rf7 Ra2+ 67. Ke3 Rxg2 68. Re7+ Kd5 69. Rd7+ Ke6 70. Rd4 Rg3+ 71. Kxe4 Rxh3 72. Rd8 Rg3 73. Rh8 Kf6 74. Rh6+ Kg7 75. Rh5 Kg6 76. Rh8 h3 77. Ke5 Ra3 78. Ke4 g4 79. Kf4 Ra4+ 80. Kg3 Kf6 81. Rh5 Rd4 82. Rh8 Ke5 83. Rh5+ Kd6 84. Rg5 Re4 85. Rh5 Re5 86. Rh6+ Re6 87. Rh5 Rg6 88. Ra5 Ke6 89. Rh5 Kf6 90. Ra5 Rh6 91. Ra2 h2 92. Rxh2 Rxh2 93. Kxh2 Ke5 94. Kg2 Kf4 95. Kf1 Kf3 96. Kg1 Kg3 {0-} 0-1

[Event "45th FIDE Olympiad 2024"]
[Site "Budapest"]
[Date "2024.09.14"]
[Round "4.65"]
[White "Ziska, Helgi Dam"]
[Black "Deac, Bogdan-Daniel"]
[Result "1/2-1/2"]
[ECO "C78"]
[WhiteElo "2553"]
[BlackElo "2680"]
[Annotator "TA"]
[PlyCount "79"]
[EventDate "2024.09.05"]
[EventType "team-tourn"]
[EventCountry "HUN"]
[SourceTitle "playchess.com"]
[Source "ChessBase"]
[SourceQuality "1"]
[WhiteTeam "Faroe Islands"]
[BlackTeam "Romania"]
[WhiteTeamCountry "FAI"]
[BlackTeamCountry "ROU"]
[TimeControl "40/5400+30:1800+30"]

{[%evp 16,79,33,0,8,11,4,10,10,0,20,0,3,6,14,14,9,7,16,10,13,19,15,13,25,11,0,0,0,0,12,8,12,3,16,19,9,5,19,0,0,0,26,32,26,24,34,0,0,0,0,0,0,0,0,-9,-8,-9,-4,-6,0,0,0,0,0,0]} 1. e4 e5 2. Nf3 Nc6 3. Bb5 {[%cal Bf1b5,Bb5a4,Ba4b3][%mdl 32]} a6 4. Ba4 Nf6 5. O-O Bc5 6. c3 b5 7. Bb3 d6 8. d4 Bb6 9. Be3 O-O 10. Nbd2 Re8 11. Re1 (11. a4 {with more complications.} Bg4 12. dxe5 Bxe3 13. exf6 Bxd2 14. Qxd2 Bxf3 15. Qg5) 11... h6 12. h3 Rb8 13. a3 Na5 14. Bc2 c5 15. dxe5 dxe5 16. b4 cxb4 17. axb4 {[#] Bxb6 is the strong threat.} Nc6 18. Nb3 Bxe3 19. Rxe3 Qb6 20. Qe1 Ra8 21. Na5 Nxa5 22. Rxa5 Nh5 23. Bd3 {[%cal Od3b5] [#] Black must now prevent Bxb5!} Rb8 24. Bf1 Nf4 25. c4 bxc4 26. Nxe5 Qxb4 27. Qa1 {[%cal Oe5c6] And now Nc6! would win.} (27. Bxc4 Rxe5 28. Qxb4 Rxb4 $15) 27... Qb1 {Hoping for ...Qxa1.} ({Reject} 27... Be6 $6 28. Nc6 (28. Rxa6 Qb1 $11) 28... Qd2 29. Nxb8 Rxb8 30. Ra2 $16 (30. Rxa6 Rb2 $16)) 28. Nxc4 Rd8 29. Re1 {Prevents Rd1} Qxa1 30. Rexa1 Rb4 31. e5 Ng6 {The position is equal.} 32. Nd6 {[%cal Od6c8]} Be6 33. Bxa6 Nxe5 34. Rxe5 Rxd6 35. Bf1 g6 36. Ree1 Rb2 37. Re2 Rxe2 38. Bxe2 Kg7 39. Rd1 Rxd1+ 40. Bxd1 {An interesting draw.   Weighted Error Value: White=0.06 (flawless) /Black=0.04 (flawless) .  Inaccurate:     	White=1     	Black=1      OK:         	White=11    	Black=14     Best:        	---       	Black=1} 1/2-1/2

[Event "45th FIDE Olympiad 2024"]
[Site "Budapest"]
[Date "2024.09.14"]
[Round "4.65"]
[White "Morazo, John Ranel"]
[Black "Misambo .J. KIlasa"]
[Result "1-0"]
[ECO "E94"]
[WhiteElo "2200"]
[BlackElo "1959"]
[PlyCount "87"]
[EventDate "2024.09.05"]
[EventType "team-tourn"]
[EventCountry "HUN"]
[WhiteTeam "Palau"]
[BlackTeam "Tanzania"]
[WhiteTeamCountry "PAL"]
[BlackTeamCountry "TAN"]
[TimeControl "40/5400+30:1800+30"]

1. d4 Nf6 2. c4 g6 3. Nc3 Bg7 4. e4 d6 5. Nf3 O-O 6. Be2 c5 7. d5 e6 8. O-O e5 9. Ne1 Ne8 10. Nd3 f5 11. a3 fxe4 12. Nxe4 Nd7 13. Be3 Qc7 14. Bg4 Ndf6 15. Bxc8 Qxc8 16. f3 a6 17. Qd2 b5 18. b3 Qd8 19. Ndf2 Nc7 20. Nxf6+ Bxf6 21. Ne4 Bg7 22. Rac1 bxc4 23. b4 c3 24. Qxc3 Nb5 25. Qd3 cxb4 26. axb4 Rc8 27. Ra1 Ra8 28. Rfc1 Nd4 29. Rxa6 Rxa6 30. Qxa6 Nf5 31. Bg5 Qa8 32. Qxa8 Rxa8 33. b5 Rb8 34. Rb1 h6 35. Bd2 Kf7 36. g4 Nd4 37. Kf2 Bf8 38. b6 Ke7 39. b7 Kd7 40. Nf6+ Ke7 41. Ba5 Kxf6 42. Bc7 Rxb7 43. Rxb7 h5 44. Bd8+ 1-0

[Event "45th FIDE Olympiad 2024"]
[Site "Budapest"]
[Date "2024.09.14"]
[Round "4.66"]
[White "Shevchenko, Kirill"]
[Black "Nielsen, Hogni Egilstoft"]
[Result "1-0"]
[ECO "D26"]
[WhiteElo "2673"]
[BlackElo "2379"]
[Annotator "TA"]
[PlyCount "35"]
[EventDate "2024.09.05"]
[EventType "team-tourn"]
[EventCountry "HUN"]
[SourceTitle "playchess.com"]
[Source "ChessBase"]
[SourceQuality "1"]
[WhiteTeam "Romania"]
[BlackTeam "Faroe Islands"]
[WhiteTeamCountry "ROU"]
[BlackTeamCountry "FAI"]
[TimeControl "40/5400+30:1800+30"]

{[%evp 19,35,32,31,24,24,18,23,36,67,69,63,66,182,183,418,413,641,642]} 1. c4 Nf6 2. Nc3 c5 3. Nf3 Nc6 4. e3 {[%cal Be2e3,Be3d4][%mdl 32]} e6 5. d4 d5 6. a3 dxc4 7. Bxc4 cxd4 8. exd4 Be7 9. O-O O-O 10. Re1 a6 11. Ba2 b5 12. d5 exd5 13. Nxd5 {White has an edge.} Nxd5 14. Qxd5 Bb7 15. Qh5 {aiming for Bg5. White has more active pieces.} Bf6 ({Black should play} 15... g6 $14 16. Qh6 Nd4) 16. Bg5 $18 {Threatens to win with Rad1.} (16. Ng5 Bxg5 17. Bxg5 Qd4) 16... Nd4 $2 {[#]} (16... Na5) 17. Ne5 $1 g6 {[#]} (17... Bxg5 $2 {too greedy.} 18. Bxf7+ (18. Nxf7 Rxf7 19. Bxf7+ Kf8 $18) 18... Rxf7 19. Qxf7+ Kh8 20. Qxb7 $18) (17... Bd5 $142) 18. Nxg6 $1 {[%mdl 512] Black got outplayed after the opening.   Weighted Error Value: White=0.01 (flawless) /Black=0.83.  Mistake:       	---       	Black=3      Inaccurate:     	---       	Black=1      OK:         	White=3     	Black=3      Best:        	White=1     	---        Strong:       	White=1     	---} 1-0

[Event "45th FIDE Olympiad 2024"]
[Site "Budapest"]
[Date "2024.09.14"]
[Round "4.66"]
[White "Veer Gandhi"]
[Black "Tan, Santiago Jr"]
[Result "1-0"]
[ECO "A02"]
[WhiteElo "1792"]
[BlackElo "1903"]
[PlyCount "141"]
[EventDate "2024.09.05"]
[EventType "team-tourn"]
[EventCountry "HUN"]
[WhiteTeam "Tanzania"]
[BlackTeam "Palau"]
[WhiteTeamCountry "TAN"]
[BlackTeamCountry "PAL"]
[TimeControl "40/5400+30:1800+30"]

1. f4 d6 2. Nf3 g6 3. e3 Bg7 4. Nc3 a6 5. Be2 Nf6 6. O-O c6 7. a4 Qc7 8. Qe1 Bg4 9. h3 Bxf3 10. Bxf3 Nbd7 11. e4 e5 12. d3 h6 13. Qg3 O-O-O 14. Be3 c5 15. Rfb1 Kb8 16. Ne2 a5 17. c3 Qb6 18. b4 Qa6 19. Nc1 Rc8 20. bxc5 Nxc5 21. fxe5 Nh5 22. Qf2 Bxe5 23. Qd2 Nf6 24. Ra2 Rc7 25. Bf4 Ne6 26. Bxe5 dxe5 27. Rb5 Rhc8 28. Ne2 Rc5 29. Rb3 Ng5 30. c4 Nxf3+ 31. gxf3 g5 32. Rab2 b5 33. Rxb5+ Ka7 34. Nc3 Qd6 35. Rb7+ Ka8 36. R7b6 R8c6 37. Rxc6 Qxc6 38. Nb5 Qa6 39. Qe3 Qb6 40. Kg2 Nd7 41. Qc1 Qc6 42. Qd2 Qa6 43. Nc3 Nb8 44. Nd5 Nd7 45. Rb5 Qa7 46. Nb6+ Qxb6 47. Rxb6 Nxb6 48. h4 f6 49. hxg5 hxg5 50. Kf1 Kb7 51. Qa2 Rc7 52. Qb3 Rc5 53. Ke2 Kc6 54. Kd2 Kc7 55. Kc3 Kc6 56. Qd1 Kd6 57. Kb3 Rc8 58. Qe1 Ra8 59. Qc3 Nd7 60. d4 Rb8+ 61. Kc2 Rb4 62. c5+ Kc7 63. d5 Rxa4 64. Qd3 Rd4 65. Qb5 a4 66. Qc6+ Kd8 67. Qa8+ Ke7 68. c6 a3 69. Qxa3+ Kd8 70. Qd6 Ke8 71. Qxd7+ 1-0

[Event "45th FIDE Olympiad 2024"]
[Site "Budapest"]
[Date "2024.09.14"]
[Round "4.67"]
[White "Egilstoft, Rogvi"]
[Black "Lupulescu, Constantin"]
[Result "1/2-1/2"]
[ECO "B06"]
[WhiteElo "2278"]
[BlackElo "2590"]
[Annotator "TA"]
[PlyCount "170"]
[EventDate "2024.09.05"]
[EventType "team-tourn"]
[EventCountry "HUN"]
[SourceTitle "playchess.com"]
[Source "ChessBase"]
[SourceQuality "1"]
[WhiteTeam "Faroe Islands"]
[BlackTeam "Romania"]
[WhiteTeamCountry "FAI"]
[BlackTeamCountry "ROU"]
[TimeControl "40/5400+30:1800+30"]

{[%evp 79,170,-81,-81,-81,-97,-287,-278,-280,-264,-249,-264,-264,-264,-1229,-1208,-1154,-1173,-1166,-1101,-1142,-1116,-742,-897,-543,-12,-20,-20,-1570,-1537,-1347,-8,-8,-8,-8,-8,-8,-8,-8,-8,-8,-8,-8,-8,-8,0,0,0,0,0,0,0,0,0,0,0,0,0,0,0,0,0,0,0,0,0,0,0,0,0,0,0,0,0,0,0,0,0,0,0,0,0,0,0,0,0,0,0,0,0,0,0,-8,-8]} 1. e4 c5 2. c3 d5 3. exd5 Qxd5 4. d4 g6 5. Be3 cxd4 6. cxd4 Bg7 7. Nf3 $1 {[%mdl 4] is recently more successful than 7.Nc3.} Qa5+ {B06: Modern Defence.} 8. Nbd2 Be6 $146 ({Predecessor:} 8... Nh6 9. Bc4 O-O 10. O-O Nf5 11. Nb3 Qb6 12. Qe2 Nc6 13. Rfd1 Nxe3 14. fxe3 e5 15. d5 {0-1 Ynojosa Aponte,F (2439)-Nasanjargal,U (2323) Wch U20 52nd 2013 (5)}) 9. b4 Qd8 10. Qa4+ Nd7 11. Ne4 Bd5 12. Bd3 Ngf6 13. Nxf6+ exf6 14. O-O Bxf3 15. gxf3 O-O 16. Rac1 Nb6 17. Qb3 f5 18. a4 Bxd4 19. Bxd4 Qxd4 20. Rfd1 Qf4 21. Bf1 Rad8 22. Kh1 Rxd1 23. Rxd1 Rc8 24. a5 Nc4 25. Qc3 Nd6 26. Qd3 Rd8 27. b5 Qe5 28. a6 Qc5 29. Qd2 Qb6 30. Qe3 Qxe3 31. fxe3 bxa6 32. bxa6 Kf8 33. Kg2 Ke7 34. Rb1 Rc8 35. Rb2 Rc3 36. Kf2 Rc6 37. Be2 Kd7 38. Bd3 Kc7 39. e4 fxe4 40. fxe4 f6 41. Ke3 Rb6 42. Rxb6 $2 (42. Rc2+ $17 {keeps fighting.} Rc6 43. Rd2) 42... Kxb6 $19 43. Kd4 Nb5+ 44. Kd5 {[#]} Nc7+ $1 (44... Kxa6 $2 {is the wrong capture.} 45. Ke6 $18) 45. Kd6 Nxa6 46. e5 $2 (46. Ke7 Nb4 47. Bb1) 46... fxe5 $19 47. Kxe5 Nb4 48. Bc4 a5 49. Bg8 h6 50. Bb3 Nd3+ 51. Kf6 Nf4 $2 (51... Kb5 $19 {And now ...Kb4 would win.} 52. Bf7 Kc5) 52. Kg7 $11 h5 53. Kh6 $2 {[%mdl 8192]} (53. Ba4 $11) 53... Kb5 $19 54. Kg5 {[#]} Kb4 $2 (54... Ne2 $1 $19 {( -> ...Kb4)} 55. Bf7 Kc5) 55. Bf7 $11 Ne2 56. Be8 $1 Nd4 57. Kxg6 h4 58. Kh5 Nb5 59. Kxh4 a4 60. Kg4 $1 a3 61. Bf7 Nd4 62. Ba2 $1 Ne2 (62... Kc3 $5 63. h4 $8 Kb2 $11) 63. h4 Nc1 64. h5 Nxa2 65. h6 Nc3 66. h7 a2 67. h8=Q a1=Q 68. Qd4+ Kb5 69. Qe5+ Kc4 70. Qf4+ Kd5 71. Qf5+ Kd6 72. Qf6+ Kc5 73. Qe5+ Kc4 74. Qf4+ Kb5 75. Qe5+ Ka4 76. Qd4+ Kb3 77. Qb6+ $1 Kc4 78. Qc6+ Kd3 79. Qf3+ Kd2 80. Qf4+ Kc2 81. Qf2+ Kc1 82. Qe3+ Kb2 83. Qf2+ Kb1 84. Qg1+ Ka2 85. Qxa1+ Kxa1 1/2-1/2

[Event "45th FIDE Olympiad 2024"]
[Site "Budapest"]
[Date "2024.09.14"]
[Round "4.67"]
[White "Mahor Jr, Manuel"]
[Black "Lusako, Shedrack"]
[Result "1-0"]
[ECO "A23"]
[WhiteElo "1759"]
[BlackElo "1760"]
[PlyCount "113"]
[EventDate "2024.09.05"]
[EventType "team-tourn"]
[EventCountry "HUN"]
[WhiteTeam "Palau"]
[BlackTeam "Tanzania"]
[WhiteTeamCountry "PAL"]
[BlackTeamCountry "TAN"]
[TimeControl "40/5400+30:1800+30"]

1. c4 e5 2. g3 Nf6 3. Nc3 Bc5 4. Bg2 c6 5. h3 d5 6. cxd5 cxd5 7. e3 Nc6 8. Nge2 O-O 9. O-O Be6 10. d4 exd4 11. exd4 Bb6 12. Be3 Qd7 13. Kh2 Ne7 14. Bg5 Ne4 15. Nxe4 dxe4 16. Bxe7 Qxe7 17. Bxe4 Bxh3 18. Bxh7+ Kxh7 19. Kxh3 Rh8 20. Kg2 g6 21. Nc3 Qd7 22. Qf3 Kg7 23. Rh1 Qxd4 24. Rad1 Qc4 25. Nd5 Bd4 26. Qe4 Rxh1 27. Kxh1 Rc8 28. Qxd4+ Qxd4 29. Rxd4 Rc2 30. Rb4 b6 31. Kg2 f5 32. Nxb6 axb6 33. Rxb6 g5 34. a4 Kf7 35. a5 Rc8 36. b4 Ke7 37. a6 Kd7 38. b5 Ra8 39. Rb7+ Kd6 40. Rf7 Ke6 41. Rc7 Kd6 42. Rc2 Ra7 43. Kf3 Ra8 44. Ke3 Re8+ 45. Kd3 Ra8 46. Rc6+ Kd5 47. Kc3 Ke4 48. Kb4 Kf3 49. Rc2 Ke4 50. Ka5 Kd3 51. Rc7 Ke2 52. Rf7 Kxf2 53. Rxf5+ Kxg3 54. Rxg5+ Kf4 55. Rd5 Ke4 56. Rd7 Ke5 57. b6 1-0

[Event "45th FIDE Olympiad 2024"]
[Site "Budapest"]
[Date "2024.09.14"]
[Round "4.68"]
[White "Nisipeanu, Liviu-Dieter"]
[Black "Apol, Luitjen Akselsson"]
[Result "1-0"]
[ECO "B50"]
[WhiteElo "2580"]
[BlackElo "2219"]
[Annotator "TA"]
[PlyCount "71"]
[EventDate "2024.09.05"]
[EventType "team-tourn"]
[EventCountry "HUN"]
[SourceTitle "playchess.com"]
[Source "ChessBase"]
[SourceQuality "1"]
[WhiteTeam "Romania"]
[BlackTeam "Faroe Islands"]
[WhiteTeamCountry "ROU"]
[BlackTeamCountry "FAI"]
[TimeControl "40/5400+30:1800+30"]

{[%evp 9,71,-2,0,-9,0,-14,0,0,0,-16,-7,0,-8,0,-19,-8,0,0,9,0,0,0,25,-1,25,-13,25,9,50,14,44,50,79,53,242,204,189,45,144,66,109,100,91,21,78,88,81,80,108,61,58,15,259,277,288,302,1029,1011,1455,788,766,743,800,731]} 1. e4 c5 2. Nf3 d6 3. Bc4 Nf6 4. d3 e6 5. O-O Be7 6. Nbd2 O-O 7. a4 d5 8. Ba2 {The position is equal.} Nc6 9. c3 b6 10. Re1 Qc7 11. e5 Nd7 12. d4 Ba6 13. Bb1 Rfc8 14. Nf1 {[%cal Bd2f1,Bf1e3,Be3g4][%mdl 32]} Nf8 15. h4 Qd8 16. h5 cxd4 17. cxd4 Nb4 18. Ne3 Rc6 19. Ra3 Rac8 20. Bd2 Bc4 {Against Rb3} 21. Ng4 {[%cal Og4f6]} a5 $2 (21... Nd7 $1 $14) 22. Nfh2 $1 $18 {[%cal Og4h6] Strongly threatening Nh6+!} Nd7 23. Qf3 (23. Nh6+ $1 $18 gxh6 24. Rg3+ (24. Bxh6 Kh8 $18) 24... Kh8 25. Ng4 (25. Bxh6 Bf8 $14)) 23... Qf8 (23... Bg5 $14 24. Qd1 Be7) 24. Qf4 {White is much more active.} (24. Qg3 $1 $16) 24... Ba6 25. Rg3 {Threatens to win with Nh6+.} Kh8 26. Bc3 ({White should play} 26. Rf3 $1 $16) 26... b5 (26... R6c7 $11) 27. axb5 $1 $40 {[%mdl 128] White attacks with force.} ({Don't take} 27. h6 g6 $16) 27... Bxb5 {[#]} 28. Rf3 $1 Kg8 {[#]} 29. Qg3 (29. Nf1 $1 $16) 29... Kh8 $14 30. Bg6 fxg6 (30... hxg6 31. hxg6 fxg6 32. Rxf8+ Nxf8 33. Nf3 $14) (30... f5 $11 31. exf6 gxf6) 31. Rxf8+ $18 Nxf8 32. h6 a4 $2 (32... Kg8 33. hxg7 Kxg7) 33. Qf4 {White threatens Qf7 and mate. White is clearly winning.} gxh6 34. Bxb4 ({Less strong is} 34. Qxh6 a3 $18) 34... Bg5 35. Qg3 Rc1 36. Nf3 {Weighted Error Value: White=0.21 (precise) /Black=0.43.  Loses game:     	---       	Black=2      Mistake:       	White=4     	Black=3      Inaccurate:     	White=5     	Black=8      OK:         	White=9     	Black=3      Best:        	White=2     	Black=3      Strong:       	White=3     	---} 1-0

[Event "45th FIDE Olympiad 2024"]
[Site "Budapest"]
[Date "2024.09.14"]
[Round "4.69"]
[White "Rodshtein, Maxim"]
[Black "Ashiku, Franc"]
[Result "1-0"]
[ECO "D02"]
[WhiteElo "2600"]
[BlackElo "2400"]
[Annotator "TA"]
[PlyCount "79"]
[EventDate "2024.09.05"]
[EventType "team-tourn"]
[EventCountry "HUN"]
[SourceTitle "playchess.com"]
[Source "ChessBase"]
[SourceQuality "1"]
[WhiteTeam "Israel"]
[BlackTeam "Albania"]
[WhiteTeamCountry "ISR"]
[BlackTeamCountry "ALB"]
[TimeControl "40/5400+30:1800+30"]

{[%evp 10,79,25,15,16,25,50,11,33,19,52,48,60,22,16,22,29,17,12,7,46,46,162,170,172,160,487,158,151,158,133,147,145,144,134,133,218,221,218,217,205,222,215,203,203,210,253,253,401,354,407,342,420,425,397,416,407,406,400,399,458,458,448,461,461,461,487,492,503,501,479,462]} 1. c4 e6 2. Nf3 d5 3. g3 Nf6 4. Bg2 Bd6 5. O-O O-O 6. d4 h6 7. Qc2 Nc6 8. Bd2 Re8 {The position is equal.} 9. Rd1 Bf8 10. Be1 dxc4 11. Na3 Bxa3 12. bxa3 {[%cal Of3e5]} Qe7 $1 13. Qxc4 Qxa3 14. Ne5 Bd7 15. Rab1 {Threatens to win with Nxd7.} Rab8 (15... Nxe5 $14 16. dxe5 Nd5) 16. Nxd7 $18 (16. Nxc6 Bxc6 17. Rb4 Bd5 $17) 16... Nxd7 17. Rxb7 Na5 (17... Rxb7 $16 {is tougher.} 18. Bxc6 (18. Qxc6 Reb8 $16) 18... Rb2 (18... Nb6 $2 19. Qc5 $18)) 18. Qb4 $2 (18. Qxc7 $2 Nxb7 19. Qxd7 Nd6 $19) (18. Qa6 $1 $18 {and the rest is easy.}) 18... Qxb4 $16 19. Rxb4 Rxb4 20. Bxb4 Nc4 21. Rc1 Ndb6 22. e3 a5 {[#]} (22... Rc8 $16 23. Bf1 a5) 23. Be1 $1 $18 (23. Bc5 Rc8 24. Bf1 Nd6) 23... Rc8 24. Bb7 ({But not} 24. Bf1 $6 c5 $16) 24... Rb8 25. Ba6 Nd6 26. Rxc7 {[%cal Oc7c6]} Nd5 27. Rc6 Rb1 {[#]} 28. Kf1 Nf5 (28... Ne8 {was called for.} 29. Bc4 g5) 29. Bd3 Ra1 30. Rc8+ Kh7 31. g4 {Prevents g6} Nb4 32. Be4 (32. Bxf5+ exf5 33. Ke2 (33. gxf5 Nd3 $11) 33... Rxa2+ (33... fxg4 34. e4 $11) 34. Bd2 f4 (34... fxg4 35. e4 $14) 35. exf4 Nd5 $14) 32... g6 {[%cal Bg7g6,Bg6f5][%mdl 32]} 33. gxf5 gxf5 34. Bc2 Kg7 35. Ke2 {White is clearly winning.} Rxa2 36. Bxb4 axb4 37. Kf3 Rb2 38. Bd3 Rd2 39. Bc2 Kf6 40. Rc4 {Weighted Error Value: White=0.19 (very precise) /Black=0.42.  Loses game:     	---       	Black=1      Missed win:     	White=1     	---        Mistake:       	---       	Black=3      Inaccurate:     	White=2     	Black=2      OK:         	White=20    	Black=7      Best:        	White=3     	Black=5      Strong:       	White=1     	Black=1} 1-0

[Event "45th FIDE Olympiad 2024"]
[Site "Budapest"]
[Date "2024.09.14"]
[Round "4.69"]
[White "Mahamat Hachim Bachar"]
[Black "Houssein, Mohamed Bilal"]
[Result "0-1"]
[ECO "B20"]
[WhiteElo "1872"]
[BlackElo "1870"]
[PlyCount "128"]
[EventDate "2024.09.05"]
[EventType "team-tourn"]
[EventCountry "HUN"]
[WhiteTeam "Chad"]
[BlackTeam "Djibouti"]
[WhiteTeamCountry "CHD"]
[BlackTeamCountry "DJI"]
[TimeControl "40/5400+30:1800+30"]

1. e4 c5 2. g3 d5 3. Bg2 dxe4 4. Bxe4 Nf6 5. Bg2 Nc6 6. Ne2 e5 7. d3 Be7 8. O-O O-O 9. h3 Be6 10. Nbc3 Qd7 11. Kh2 h6 12. Be3 Nd4 13. f4 Nd5 14. Nxd5 Bxd5 15. Bxd5 Qxd5 16. Nc3 Qe6 17. Bxd4 cxd4 18. f5 Qc6 19. Ne4 Rac8 20. Rf2 Bg5 21. f6 Bxf6 22. Qh5 Bg5 23. Nxg5 hxg5 24. Qxg5 f5 25. Re1 e4 26. Ree2 Qe6 27. a3 e3 28. Rf4 Qe5 29. Re4 Qd5 30. Qh5 Rf6 31. Rf4 Qd6 32. Rxf5 Rcf8 33. Rxf6 Qxf6 34. Qd5+ Kh8 35. Rg2 Rf7 36. c3 dxc3 37. bxc3 Kg8 38. d4 Qe7 39. Qe5 Qxe5 40. dxe5 Re7 41. Re2 Rxe5 42. Kg2 Ra5 43. Rxe3 Rxa3 44. Kf2 Kf7 45. Rd3 Ke6 46. g4 a5 47. Ke2 Ra2+ 48. Rd2 Rxd2+ 49. Kxd2 Ke5 50. Kd3 b5 51. g5 Kf5 52. h4 Kg4 53. Kd4 a4 54. c4 bxc4 55. Kxc4 Kxh4 56. g6 Kg5 57. Kb4 Kxg6 58. Kxa4 Kf5 59. Kb3 Kf4 60. Kc3 Kf3 61. Kd2 Kf2 62. Kd3 g5 63. Ke4 g4 64. Kf4 g3 {0-} 0-1

[Event "45th FIDE Olympiad 2024"]
[Site "Budapest"]
[Date "2024.09.14"]
[Round "4.70"]
[White "Pasko, Llambi"]
[Black "Gorshtein, Ido"]
[Result "0-1"]
[ECO "D37"]
[WhiteElo "2396"]
[BlackElo "2543"]
[Annotator "ChessBase"]
[PlyCount "148"]
[EventDate "2024.09.05"]
[EventType "team-tourn"]
[EventCountry "HUN"]
[SourceTitle "playchess.com"]
[Source "ChessBase"]
[SourceQuality "1"]
[WhiteTeam "Albania"]
[BlackTeam "Israel"]
[WhiteTeamCountry "ALB"]
[BlackTeamCountry "ISR"]
[TimeControl "40/5400+30:1800+30"]

1. d4 Nf6 2. c4 e6 3. Nf3 d5 4. Nc3 Be7 5. Bf4 O-O 6. e3 Nbd7 7. c5 Nh5 8. Bd3 Nxf4 9. exf4 b6 10. b4 a5 11. a3 c6 12. O-O Ba6 13. g3 Bxd3 14. Qxd3 Bf6 15. Rfc1 Qc7 16. Kg2 Ra7 17. Rab1 axb4 18. axb4 Rfa8 19. Ne5 Bxe5 20. fxe5 Ra3 21. Qc2 Qb7 22. Qe2 h6 23. h4 Nf8 24. Rc2 Ng6 25. b5 bxc5 26. bxc6 Qxc6 27. Nb5 Ra1 28. Rxa1 Rxa1 29. Rxc5 Qa6 30. Rc7 Rb1 31. Nc3 Qxe2 32. Nxe2 h5 33. Ng1 Rb8 34. Nf3 f6 35. Rc6 Kf7 36. Rc7+ Kg8 37. Rc6 Kf7 38. Rc7+ Ne7 39. Ra7 Re8 40. Rc7 Kg8 41. Ra7 Nf5 42. Rb7 Ra8 43. exf6 gxf6 44. Rb6 Kf7 45. Rb7+ Kg6 46. Rb6 Ra3 47. Rb2 Ra6 48. Rc2 Ra4 49. Rd2 Rb4 50. Re2 Kf7 51. Rd2 Nd6 52. Ng1 Ne4 53. Rd3 Rb2 54. Nh3 Ke7 55. Ra3 e5 56. dxe5 fxe5 57. Ra5 Nc3 58. Ng5 e4 59. Rc5 Rc2 60. Kf1 Kd6 61. Nxe4+ dxe4 62. Rxh5 Nd1 63. Rh6+ Ke5 64. Rh5+ Ke6 65. Rh6+ Kf5 66. Rh8 Kg4 67. Rf8 Kh3 68. Ra8 Nxf2 69. h5 Nd3 70. Re8 Rf2+ 71. Kg1 Re2 72. Rf8 e3 73. h6 Rg2+ 74. Kh1 Nf2+ 0-1

[Event "45th FIDE Olympiad 2024"]
[Site "Budapest"]
[Date "2024.09.14"]
[Round "4.70"]
[White "Omar, Aden Omar"]
[Black "Abdelaziz Bokhit, Badjoiri"]
[Result "1-0"]
[ECO "C53"]
[WhiteElo "1779"]
[BlackElo "1778"]
[PlyCount "77"]
[EventDate "2024.09.05"]
[EventType "team-tourn"]
[EventCountry "HUN"]
[WhiteTeam "Djibouti"]
[BlackTeam "Chad"]
[WhiteTeamCountry "DJI"]
[BlackTeamCountry "CHD"]
[TimeControl "40/5400+30:1800+30"]

1. e4 e5 2. Nf3 Nc6 3. Bc4 Bc5 4. c3 h6 5. d4 exd4 6. cxd4 Bb6 7. Nc3 d6 8. h3 Nge7 9. O-O O-O 10. Be3 Kh8 11. Qd2 Ng8 12. Rad1 f5 13. Bd3 Nb4 14. Bb1 fxe4 15. Nxe4 Nd5 16. Ng3 Bxh3 17. Qd3 Ngf6 18. gxh3 Qd7 19. Kg2 Rae8 20. Nh4 Rf7 21. a3 Kg8 22. Ba2 Rfe7 23. Ng6 Re6 24. Nf4 Qc6 25. Kh2 Nxf4 26. Bxf4 d5 27. Nf5 Re4 28. Be5 Qe6 29. Qf3 Rxe5 30. dxe5 Qxe5+ 31. Kh1 Qxb2 32. Bxd5+ Nxd5 33. Qxd5+ Kh7 34. Rg1 Rg8 35. Nxh6 Rf8 36. Qe4+ Kh8 37. Nf7+ Kg8 38. Ng5 Rf6 39. Rd8+ 1-0